bitfinex/quotes_ETHUSD_20220220
["timestamp","ask_amount","ask_price","bid_price","bid_amount"]
[1645318789592,0.1829,2734.9,2733.8,11.15]
[1645318789792,0.32089997,2735.3,2734.0,11.15]
[1645318789991,15.718,2735.4,2734.3,0.91472]
[1645318789992,7.842,2735.4,2734.3,0.91472]
[1645318790190,7.842,2735.4,2734.4,1.8294422]
[1645318790191,3.6575562,2735.3,2734.4,1.8294422]
[1645318790391,0.9148,2735.8,2734.4,12.9794422]
[1645318790392,3.6575562,2735.7,2734.4,12.9794422]
[1645318790787,0.00331258,2734.8,2734.4,12.9794422]
[1645318791295,1.258e-05,2734.8,2734.5,12.16305702]
[1645318791490,1.258e-05,2734.8,2734.5,2.84245702]
[1645318791749,3.6575562,2735.7,2734.5,2.84245702]
[1645318791750,0.91484,2735.5,2734.5,2.84245702]
[1645318792044,1.00095616,2735.5,2734.5,1.01305702]
[1645318792646,1.00095616,2735.5,2735.4,1.10892019]
[1645318793646,1.52295616,2735.5,2735.4,1.10892019]
[1645318796889,1.43684,2735.5,2735.4,1.10892019]
[1645318798792,1.43684,2735.5,2734.3,7.6251]
[1645318798997,1.43684,2735.5,2734.3,1.2176]
[1645318799539,2.43684,2735.5,2734.3,1.2176]
[1645318799743,3.03684,2735.5,2734.3,1.2176]
[1645318799940,1.83011,2735.4,2735.1,1.19116111]
[1645318800140,0.91504,2735.2,2735.1,1.18746111]
[1645318800340,1.43704,2735.2,2735.1,1.18746111]
[1645318801545,0.91504,2735.2,2735.1,1.18746111]
[1645318802542,0.92422912,2735.2,2735.1,1.09746111]
[1645318805793,0.92422912,2735.2,2734.3,1.2176]
[1645318805992,4.55956102,2735.2,2734.3,1.2176]
[1645318806196,8.912e-05,2734.8,2734.4,14.78591774]
[1645318806396,0.1472,2735.6,2734.4,14.78591774]
[1645318806397,0.00311339,2734.9,2734.4,14.78591774]
[1645318807042,1.339e-05,2734.9,2734.4,14.78591774]
[1645318807242,7.32,2736.0,2734.4,14.78591774]
[1645318807442,7.32,2736.0,2735.9,1.08604615]
[1645318807643,7.8660626,2736.0,2735.9,1.08604615]
[1645318808445,8.8660626,2736.0,2735.9,1.08604615]
[1645318808643,8.8660626,2736.0,2734.9,3.63591774]
[1645318808846,8.8660626,2736.0,2734.8,3.63591774]
[1645318808847,1.0,2735.9,2734.8,3.63591774]
[1645318809045,1.0,2735.9,2735.4,1.83234248]
[1645318809847,0.91482,2735.7,2735.4,1.83234248]
[1645318810050,1.8297,2735.8,2735.6,9.5]
[1645318810051,0.00212269,2735.8,2735.6,9.5]
[1645318810492,0.29818529,2736.0,2735.6,9.5]
[1645318812093,1.91451,2736.5,2735.6,9.5]
[1645318812292,1.91451,2736.5,2735.7,3.6112922]
[1645318812488,1.91451,2736.5,2736.4,0.93902143]
[1645318812689,2.21451,2736.5,2736.4,0.93902143]
[1645318813491,2.39721,2736.5,2736.4,0.93902143]
[1645318814139,2.21451,2736.5,2736.4,0.93902143]
[1645318814338,2.21451,2736.5,2736.4,2.77136391]
[1645318815139,1.91451,2736.5,2736.4,2.77136391]
[1645318815343,0.91451,2736.5,2736.4,2.77136391]
[1645318815748,2.533824,2737.0,2736.4,2.77136391]
[1645318815749,2.01155,2737.0,2736.4,2.77136391]
[1645318815944,0.54197439,2737.1,2736.4,2.77136391]
[1645318816147,0.00331182,2736.6,2736.4,2.77136391]
[1645318816344,0.00331182,2736.6,2736.4,1.83234248]
[1645318816744,0.00331182,2736.6,2736.5,0.90262475]
[1645318817043,0.54197439,2737.1,2736.5,0.90262475]
[1645318817247,0.00212103,2736.6,2736.5,0.90262475]
[1645318818098,0.91435,2737.0,2736.5,0.90262475]
[1645318818396,0.00212103,2736.7,2736.5,0.90262475]
[1645318819398,0.91442,2736.7,2736.5,0.90262475]
[1645318819596,0.91654103,2736.7,2736.5,0.90262475]
[1645318819800,0.91654103,2736.7,2736.6,1.83234248]
[1645318820599,0.91442,2736.7,2736.6,1.83234248]
[1645318823847,1.91442,2736.7,2736.6,1.83234248]
[1645318824047,0.91442,2736.7,2736.6,1.83234248]
[1645318824248,2.00053616,2736.7,2736.6,1.83234248]
[1645318824549,1.00310035,2736.8,2736.6,1.83234248]
[1645318824947,0.00310035,2736.8,2736.5,0.90262475]
[1645318825389,1.91433,2737.0,2736.6,1.83234248]
[1645318825592,0.00310035,2736.8,2736.6,1.83234248]
[1645318826592,0.91433,2737.0,2736.6,1.83234248]
[1645318826794,0.00311476,2736.8,2736.6,1.83234248]
[1645318827592,0.00311476,2736.8,2736.6,5.44363468]
[1645318827799,0.91433,2737.0,2736.6,1.83234248]
[1645318827992,0.00311476,2736.8,2736.6,1.83234248]
[1645318828893,0.91433,2737.0,2736.6,1.83234248]
[1645318829139,0.00311476,2736.8,2736.6,1.83234248]
[1645318829342,0.9144,2736.7,2736.6,1.83234248]
[1645318835391,0.8644,2736.7,2736.6,1.83234248]
[1645318841195,0.00311386,2736.8,2736.7,9.5]
[1645318842192,0.87969029,2737.3,2736.8,0.0031]
[1645318842390,0.00212088,2736.9,2736.8,0.0031]
[1645318842592,0.00212088,2736.9,2736.8,0.87265837]
[1645318843396,0.87969029,2737.3,2736.8,4.47456161]
[1645318843594,0.00212088,2737.0,2736.8,0.87265837]
[1645318844241,0.00212088,2737.0,2736.8,4.47456161]
[1645318844642,0.32983098,2737.3,2736.8,4.47456161]
[1645318844841,0.00331599,2737.0,2736.8,4.47456161]
[1645318845040,0.23314697,2737.3,2736.8,4.47456161]
[1645318846142,0.23314697,2737.3,2736.8,0.87265837]
[1645318846341,0.23314697,2737.3,2736.8,4.47456161]
[1645318846744,0.23314697,2737.3,2737.0,1.83064799]
[1645318847345,0.91422,2737.2,2737.0,1.83064799]
[1645318848404,0.522,2737.1,2737.0,1.83064799]
[1645318848609,0.522,2737.1,2737.0,0.94037419]
[1645318848801,1.60811616,2737.1,2737.0,0.94037419]
[1645318848998,0.60811616,2737.1,2737.0,0.94037419]
[1645318849201,1.08611616,2737.1,2737.0,0.94037419]
[1645318849499,0.68611616,2737.1,2737.0,0.94037419]
[1645318849699,2.20811616,2737.1,2737.0,0.94037419]
[1645318851000,1.60811616,2737.1,2737.0,0.94037419]
[1645318851306,5.41312684,2737.1,2737.0,0.94037419]
[1645318851501,0.91457,2736.8,2735.9,1.1523]
[1645318851750,0.522,2736.7,2735.9,1.1523]
[1645318852347,0.522,2736.7,2736.4,1.16167004]
[1645318853048,1.82917,2736.6,2736.4,1.16167004]
[1645318853249,2.35117,2736.6,2736.4,1.16167004]
[1645318853953,3.35117,2736.6,2736.4,1.16167004]
[1645318854350,2.35117,2736.6,2736.4,1.16167004]
[1645318858193,2.35117,2736.6,2735.9,1.1523]
[1645318859250,2.35117,2736.6,2735.8,1.03966195]
[1645318859251,0.91467,2736.4,2735.8,1.03966195]
[1645318859448,0.522,2736.3,2735.8,1.03966195]
[1645318859643,1.122,2736.3,2735.8,1.03966195]
[1645318859843,2.0122,2736.2,2735.8,1.03966195]
[1645318860043,0.522,2736.1,2735.8,1.03966195]
[1645318861043,1.43675,2736.1,2735.8,1.03966195]
[1645318861655,0.55264167,2736.3,2735.8,1.03966195]
[1645318862243,1.46716167,2736.3,2735.8,1.03966195]
[1645318872992,1.46716167,2736.3,2735.8,1.03837499]
[1645318881345,0.55264167,2736.3,2735.8,1.03837499]
[1645318882553,0.55264167,2736.3,2735.9,1.55323654]
[1645318884348,0.55264167,2736.3,2735.8,1.03837499]
[1645318884755,1.46716167,2736.3,2735.8,1.03837499]
[1645318885055,1.98916167,2736.3,2735.8,1.03837499]
[1645318886193,1.82942,2736.1,2735.8,1.03837499]
[1645318886393,0.522,2736.0,2735.8,1.03837499]
[1645318886590,0.9147,2735.9,2735.8,1.03837499]
[1645318886790,1.4367,2735.9,2735.8,1.03837499]
[1645318888391,0.522,2735.9,2735.8,1.03837499]
[1645318888594,0.00628528,2736.0,2735.8,1.03837499]
[1645318889448,0.03874298,2736.0,2735.8,1.03837499]
[1645318890550,0.07120068,2736.0,2735.8,1.03837499]
[1645318891151,0.98583068,2736.0,2735.8,1.03837499]
[1645318891553,0.99211596,2736.0,2735.8,1.03837499]
[1645318892549,1.02457366,2736.0,2735.8,1.03837499]
[1645318893597,1.03085894,2736.0,2735.8,1.03700633]
[1645318894599,1.06331664,2736.0,2735.8,1.03700633]
[1645318895702,1.06960192,2736.0,2735.8,1.03700633]
[1645318896746,1.0758872,2736.0,2735.8,1.03700633]
[1645318897448,0.1612572,2736.0,2735.8,1.03700633]
[1645318897844,0.1937149,2736.0,2735.9,1.55330414]
[1645318898845,0.2261726,2736.0,2735.9,1.55330414]
[1645318899848,0.23245788,2736.0,2735.9,1.55330414]
[1645318900705,0.23245788,2736.0,2735.8,1.03700633]
[1645318900907,0.26491558,2736.0,2735.8,1.03700633]
[1645318901303,1.17954558,2736.0,2735.8,1.03700633]
[1645318902102,1.21200328,2736.0,2735.8,1.03700633]
[1645318902604,0.29737328,2736.0,2735.8,1.03700633]
[1645318903002,0.30365856,2736.0,2735.8,1.03700633]
[1645318904249,0.33611626,2736.0,2735.8,1.03700633]
[1645318905346,0.34240154,2736.0,2735.8,1.03700633]
[1645318906152,0.34868682,2736.0,2735.8,1.03700633]
[1645318906751,0.34868682,2736.0,2735.9,1.5533286]
[1645318907148,0.38114452,2736.0,2735.8,1.03700633]
[1645318908200,0.41360222,2736.0,2735.8,1.03700633]
[1645318910798,0.40731694,2736.0,2735.8,1.03700633]
[1645318911401,0.40731694,2736.0,2735.9,1.55327687]
[1645318911849,0.41360222,2736.0,2735.8,1.03700633]
[1645318912051,0.41360222,2736.0,2735.9,1.55331997]
[1645318912951,0.40068945,2736.0,2735.9,1.55331997]
[1645318913951,0.43314715,2736.0,2735.9,1.55331997]
[1645318914954,0.43314715,2736.0,2735.8,1.03700633]
[1645318916005,0.43314715,2736.0,2735.9,1.55319097]
[1645318916006,0.40697473,2736.0,2735.9,1.55319097]
[1645318916204,0.40697473,2736.0,2735.9,1.55161063]
[1645318918008,0.43943243,2736.0,2735.9,1.55161063]
[1645318918307,0.40697473,2736.0,2735.9,1.55161063]
[1645318920156,0.43314715,2736.0,2735.9,1.55161063]
[1645318920358,0.43314715,2736.0,2735.8,1.03700633]
[1645318920959,0.43314715,2736.0,2735.9,11.15]
[1645318921158,0.00628528,2736.0,2735.9,11.15]
[1645318922911,0.00628528,2736.0,2735.8,1.03700633]
[1645318923302,0.03874298,2736.0,2735.8,1.03700633]
[1645318924209,0.04502826,2736.0,2735.8,1.03700633]
[1645318925207,0.05131354,2736.0,2735.8,1.03700633]
[1645318927647,0.04502826,2736.0,2735.8,1.03700633]
[1645318928649,0.04502826,2736.0,2735.8,1.03072105]
[1645318931009,0.04502826,2736.0,2735.8,0.93512905]
[1645318931609,0.04502826,2736.0,2735.8,12.08512905]
[1645318931809,0.04502826,2736.0,2735.8,0.93512905]
[1645318936254,0.04502826,2736.0,2735.9,1.55329038]
[1645318939606,0.04502826,2736.0,2735.9,12.70329038]
[1645318939811,0.04502826,2736.0,2735.9,1.55329038]
[1645318945705,0.04502826,2736.0,2735.9,12.70329038]
[1645318946303,0.55264167,2736.3,2736.1,11.15]
[1645318946505,0.55264167,2736.3,2736.2,12.70329038]
[1645318946709,0.55264167,2736.3,2736.2,1.55329038]
[1645318946905,0.55264167,2736.3,2736.0,10.41427]
[1645318947107,0.55264167,2736.3,2736.1,1.55317005]
[1645318948007,0.55264167,2736.3,2736.0,9.5]
[1645318948210,0.55177842,2736.3,2736.0,9.5]
[1645318948810,0.55177842,2736.3,2736.1,1.55319373]
[1645318949250,0.55177842,2736.3,2736.0,9.5]
[1645318949452,0.55177842,2736.3,2736.1,1.55316293]
[1645318950954,0.55177842,2736.3,2735.8,0.93512905]
[1645318951151,0.55177842,2736.3,2735.9,1.55324888]
[1645318953708,0.55177842,2736.3,2736.0,1.55320476]
[1645318953908,0.55177842,2736.3,2735.8,0.93512905]
[1645318954209,0.55177842,2736.3,2735.9,1.55324349]
[1645318969315,0.91456,2736.1,2735.9,1.55324349]
[1645318969509,3.58235488,2736.0,2735.9,1.55324349]
[1645318969709,1.43656,2736.1,2735.7,1.55324349]
[1645318970109,0.00100608,2735.9,2735.8,1.5533337]
[1645318970309,0.00100608,2735.9,2735.5,1.22050274]
[1645318970510,0.00100608,2735.9,2735.6,2.70359015]
[1645318970511,0.91468,2735.8,2735.6,2.70359015]
[1645318970709,0.91468,2735.8,2735.7,1.55338056]
[1645318971759,0.00100608,2735.9,2735.7,1.55338056]
[1645318974566,0.00100608,2735.9,2735.6,1.15020959]
[1645318975404,0.00100608,2735.9,2735.7,1.55336716]
[1645318978506,0.91566608,2735.9,2735.3,0.01510302]
[1645318978711,0.91566608,2735.9,2735.4,1.55337138]
[1645318978906,0.91566608,2735.9,2735.5,0.00344008]
[1645318979459,0.91566608,2735.9,2735.5,1.55681146]
[1645318979659,0.91566608,2735.9,2735.6,1.55337138]
[1645318979859,0.91566608,2735.9,2735.6,0.00344008]
[1645318980064,0.91566608,2735.9,2735.7,1.02400786]
[1645318980462,0.91566608,2735.9,2735.3,0.00344008]
[1645318980666,1.43766608,2735.9,2735.2,0.011663]
[1645318980863,9.44936608,2735.9,2735.2,0.01510308]
[1645318981068,5.0,2735.6,2735.2,0.011663]
[1645318981271,6.529,2735.3,2734.9,0.00291606]
[1645318981466,6.529,2735.3,2734.6,0.00344008]
[1645318981467,12.25398912,2735.2,2734.6,0.00344008]
[1645318981667,12.25398912,2735.2,2734.4,0.00344008]
[1645318981668,1.83059,2734.9,2734.4,0.00344008]
[1645318981862,1.83059,2734.9,2734.2,1.55397649]
[1645318981863,7.2337,2734.8,2734.3,1.55397649]
[1645318982061,7.2337,2734.8,2734.4,1.55397649]
[1645318982263,1.0,2734.7,2734.5,1.55397649]
[1645318982460,1.0,2734.7,2733.8,0.68211222]
[1645318982461,0.522,2734.6,2733.8,0.68211222]
[1645318982662,1.83065,2734.5,2733.8,0.68211222]
[1645318982906,1.83065,2734.5,2734.3,1.02518168]
[1645318982907,0.522,2734.4,2734.3,1.02518168]
[1645318983107,0.522,2734.4,2734.3,2.579222]
[1645318983921,5.01968488,2734.4,2734.3,0.95134032]
[1645318984115,16.98688485,2734.4,2734.2,0.00331744]
[1645318984311,7.7117,2734.3,2734.2,0.00331744]
[1645318984512,8.5337,2734.3,2734.2,0.00331744]
[1645318985210,0.91537,2733.9,2733.5,1.01131245]
[1645318985411,0.522,2733.8,2733.5,1.01131245]
[1645318985809,1.91537,2733.9,2733.8,1.044]
[1645318987063,1.91537,2733.9,2733.8,0.894]
[1645318989070,2.43737,2733.9,2733.8,0.894]
[1645318994013,5.9952688,2733.9,2733.8,0.08310628]
[1645318994289,9.8,2733.8,2733.3,0.01241445]
[1645318994583,9.8,2733.8,2732.2,5.69795179]
[1645318994584,0.91603,2733.1,2732.2,5.69795179]
[1645318994779,0.91603,2733.1,2731.5,2.7527]
[1645318994780,6.529,2732.6,2731.5,2.7527]
[1645318995079,3.27021,2732.5,2731.3,1.1949]
[1645318995282,0.9161185,2732.2,2730.9,1.2454]
[1645318995479,8.4281088,2732.5,2730.9,1.2454]
[1645318995480,6.529,2732.0,2730.9,1.2454]
[1645318995678,0.522,2731.9,2731.0,0.04035806]
[1645318995876,1.7049,2731.9,2731.0,0.04035806]
[1645318996077,6.529,2731.7,2731.0,0.04035806]
[1645318996279,6.529,2731.3,2730.7,0.04206333]
[1645318996478,6.529,2731.0,2730.4,0.0437686]
[1645318996675,6.529,2731.0,2730.0,0.05]
[1645318996676,0.9166,2730.8,2730.1,0.04547387]
[1645318996880,4.0702424,2730.7,2730.1,0.04547387]
[1645318997078,10.5992424,2730.7,2730.1,0.04547387]
[1645318997279,1.0,2730.6,2730.4,0.97780675]
[1645318997478,3.7313424,2730.9,2730.4,0.85710675]
[1645318997479,0.522,2730.5,2730.4,0.85710675]
[1645318997679,0.522,2730.7,2730.5,0.04320018]
[1645318997918,0.522,2731.0,2730.5,1.566]
[1645318998108,0.522,2731.0,2730.5,1.60920018]
[1645318998308,0.522,2731.0,2730.6,0.04263175]
[1645318998508,0.522,2731.0,2730.9,1.07272183]
[1645318998709,0.91626,2731.1,2730.9,1.07272183]
[1645318998907,0.91626,2731.1,2730.9,1.11364831]
[1645318999108,0.522,2731.3,2730.9,1.11364831]
[1645318999810,0.522,2731.3,2731.0,0.00332375]
[1645319000310,1.43823,2731.3,2731.0,0.00332375]
[1645319000712,1.43823,2731.3,2730.9,0.04092648]
[1645319000908,1.43823,2731.3,2731.0,0.00332373]
[1645319001111,1.38823,2731.3,2731.0,0.00332373]
[1645319001968,1.38823,2731.3,2730.8,0.84288244]
[1645319002165,2.38823,2731.3,2731.0,0.00332373]
[1645319002567,0.472,2731.3,2731.0,0.00332373]
[1645319002766,15.69634054,2731.6,2731.0,0.00332373]
[1645319002967,31.27618619,2731.6,2731.0,0.00332373]
[1645319003173,31.27618619,2731.6,2730.9,11.19092648]
[1645319003365,31.27618619,2731.6,2731.2,0.00332366]
[1645319003970,31.27618619,2731.6,2731.3,0.91582]
[1645319004165,27.95826185,2731.6,2731.4,2.46926538]
[1645319004367,27.95826185,2731.6,2731.5,1.555285]
[1645319004765,12.26192131,2731.6,2731.5,1.555285]
[1645319005167,12.26192131,2731.6,2731.4,0.91398038]
[1645319005426,12.26192131,2731.6,2731.5,1.5553397]
[1645319005812,10.60286605,2731.6,2731.5,1.5553397]
[1645319006211,10.60286605,2731.6,2731.4,0.91730395]
[1645319006811,10.60286605,2731.6,2731.4,0.91398038]
[1645319007012,10.60286605,2731.6,2731.4,0.91730395]
[1645319007911,11.51896605,2731.6,2731.5,1.55536668]
[1645319008113,0.9161,2731.6,2731.5,1.55536668]
[1645319008324,0.9161,2731.6,2731.4,0.00332357]
[1645319008325,2.621,2731.6,2731.4,0.00332357]
[1645319008514,6.1782412,2731.6,2731.4,0.00332357]
[1645319008714,2.621,2731.6,2731.4,0.00332357]
[1645319009159,2.621,2731.6,2731.1,1.55556357]
[1645319009361,2.621,2731.6,2731.4,0.00311033]
[1645319009562,6.08694819,2731.6,2731.4,0.00311033]
[1645319010060,12.61594819,2731.6,2731.4,0.00311033]
[1645319010264,13.21594819,2731.6,2730.9,0.04092648]
[1645319010460,1.83271,2731.4,2730.9,0.04092648]
[1645319010660,1.83271,2731.4,2731.0,0.01244318]
[1645319010661,0.522,2731.3,2731.0,0.01244318]
[1645319010863,0.522,2731.3,2730.6,3.41231613]
[1645319011060,0.522,2731.3,2730.5,3.16643807]
[1645319011265,1.522,2731.3,2730.6,3.5572412]
[1645319011661,1.522,2731.3,2730.5,3.16643807]
[1645319011863,1.43823,2731.3,2730.5,2.47417867]
[1645319012062,2.43823,2731.3,2730.5,2.47417867]
[1645319012263,2.43823,2731.3,2730.5,6.72367927]
[1645319012569,2.43823,2731.3,2730.6,0.6922594]
[1645319012762,9.21094577,2731.6,2730.7,3.5572412]
[1645319013014,0.522,2731.5,2730.8,9.5]
[1645319013216,2.68194577,2731.6,2730.9,3.52717946]
[1645319013410,2.68194577,2731.6,2731.4,1.14364015]
[1645319014311,4.91624516,2731.9,2731.7,0.63629946]
[1645319014514,4.91624516,2731.9,2731.7,0.48629946]
[1645319014717,4.39424516,2731.9,2731.7,0.48629946]
[1645319014917,3.4439796,2732.1,2731.7,0.48629946]
[1645319015119,3.4439796,2732.1,2731.7,0.33629946]
[1645319015315,0.55995971,2732.2,2731.7,0.33629946]
[1645319015514,0.00332312,2731.9,2731.7,0.33629946]
[1645319016414,4.4157,2732.8,2731.7,0.33629946]
[1645319016662,0.00332312,2731.9,2731.7,0.33629946]
[1645319017065,0.00332312,2731.9,2731.7,3.87263956]
[1645319017466,1.46755285,2732.8,2731.8,11.15]
[1645319017667,1.98955285,2732.8,2731.9,3.0363401]
[1645319017862,1.07385285,2732.8,2731.9,3.0363401]
[1645319018462,1.07385285,2732.8,2732.3,0.89503171]
[1645319018664,1.07385285,2732.8,2731.9,3.0363401]
[1645319018862,1.07385285,2732.8,2731.7,3.8599895]
[1645319019463,1.07385285,2732.8,2731.7,4.7756895]
[1645319019867,1.98957285,2732.8,2731.7,4.7756895]
[1645319020267,0.00332292,2732.4,2731.7,5.4679489]
[1645319020529,0.00332292,2732.4,2732.3,1.13624137]
[1645319021129,1.98957285,2732.8,2732.3,1.13624137]
[1645319021328,0.00332288,2732.5,2732.3,1.13624137]
[1645319022327,1.98957285,2732.8,2732.3,1.13624137]
[1645319022729,0.00332286,2732.5,2732.3,1.13624137]
[1645319022932,0.91912286,2732.5,2732.3,1.13624137]
[1645319023131,0.91912286,2732.5,2731.7,1.02855886]
[1645319023329,1.44112286,2732.5,2731.7,1.02855886]
[1645319023528,1.4378,2732.5,2731.7,1.02855886]
[1645319023829,0.00332299,2732.2,2731.7,1.02855886]
[1645319024028,0.00332299,2732.2,2731.8,0.6922594]
[1645319024463,0.00332299,2732.2,2731.9,1.10609413]
[1645319024668,0.55185285,2732.8,2731.9,1.10609413]
[1645319024870,0.55185285,2732.8,2732.0,0.6922594]
[1645319025061,0.00332303,2732.1,2732.0,0.6922594]
[1645319025267,0.00332303,2732.1,2731.9,1.10609413]
[1645319025468,0.00332303,2732.1,2731.9,1.79835353]
[1645319025863,0.91587,2732.3,2731.9,1.79835353]
[1645319025864,1.0,2732.7,2731.9,1.79835353]
[1645319026064,1.0,2732.7,2732.5,1.09621022]
[1645319026264,0.55185285,2732.8,2732.5,1.09621022]
[1645319026465,0.91574,2732.7,2732.5,1.09621022]
[1645319026665,0.91574,2732.7,2731.9,0.6922594]
[1645319027267,0.55185285,2732.8,2732.0,0.6922594]
[1645319028123,0.55185285,2732.8,2732.1,0.6922594]
[1645319028314,0.55185285,2732.8,2732.7,1.18327692]
[1645319029715,0.55185285,2732.8,2732.7,2.73830791]
[1645319031117,1.46756285,2732.8,2732.7,1.55503099]
[1645319031967,1.46756285,2732.8,2732.0,14.6085594]
[1645319031968,1.46756285,2732.8,2732.1,1.55503099]
[1645319032162,1.46756285,2732.8,2732.2,1.55503099]
[1645319032362,1.46756285,2732.8,2732.7,1.15830722]
[1645319032864,1.46756285,2732.8,2732.7,2.71333821]
[1645319033464,1.44336285,2732.8,2732.7,2.71333821]
[1645319033665,1.42816285,2732.8,2732.7,2.71333821]
[1645319034867,1.42816285,2732.8,2731.9,11.15]
[1645319035065,1.42816285,2732.8,2732.0,1.55513848]
[1645319035265,1.95016285,2732.8,2732.0,1.55513848]
[1645319035824,0.0030873,2732.5,2732.4,0.91483917]
[1645319036218,0.0030873,2732.5,2732.4,2.46997765]
[1645319036719,1.95016285,2732.8,2732.4,2.46997765]
[1645319036919,0.00308728,2732.6,2732.5,1.55513848]
[1645319037119,0.00308728,2732.6,2731.8,13.8808]
[1645319037326,0.91586,2732.4,2731.9,1.55517338]
[1645319038024,1.83172,2732.7,2732.4,1.11573302]
[1645319038623,3.5,2732.6,2731.7,1.53759946]
[1645319038827,0.91609,2732.4,2731.7,0.33629946]
[1645319039023,0.522,2732.3,2731.7,0.33629946]
[1645319039261,0.1824,2732.2,2731.7,0.33629946]
[1645319039462,0.18550283,2732.2,2731.7,0.33629946]
[1645319039663,0.522,2732.1,2731.7,1.28548425]
[1645319040862,1.4382,2732.1,2731.7,1.28548425]
[1645319041664,3.5,2732.0,2731.7,0.33629946]
[1645319041864,0.91626,2731.8,2731.7,0.33629946]
[1645319042064,1.43826,2731.8,2731.7,0.33629946]
[1645319043433,5.41637,2731.7,2731.3,0.0031032]
[1645319043633,0.91641,2731.5,2731.3,0.0031032]
[1645319043825,0.91641,2731.5,2731.2,0.01241326]
[1645319043826,9.022,2731.4,2731.2,0.01241326]
[1645319044026,3.5,2731.3,2730.6,0.0034109]
[1645319044225,0.522,2731.2,2730.5,1.5594109]
[1645319044424,3.5,2731.1,2730.6,1.55588743]
[1645319044626,1.4385258,2731.0,2730.6,1.55588743]
[1645319044827,3.5,2730.9,2730.5,1.5594109]
[1645319045027,0.522,2730.8,2730.5,1.5594109]
[1645319045228,1.522,2730.8,2730.5,1.5594109]
[1645319045446,0.91663,2730.7,2730.6,0.00117238]
[1645319045626,1.43863,2730.7,2730.6,0.00117238]
[1645319046229,4.93863,2730.7,2730.6,0.00117238]
[1645319046426,6.85528,2730.7,2730.5,1.5594109]
[1645319046662,3.35528,2730.7,2730.5,1.5605833]
[1645319046962,2.35528,2730.7,2730.5,1.5605833]
[1645319047364,2.35528,2730.7,2730.1,0.00469031]
[1645319047365,3.5,2730.6,2730.1,0.00469031]
[1645319047564,0.91669,2730.4,2730.0,0.05]
[1645319047763,1.4387,2730.3,2730.1,1.55617461]
[1645319047964,2.4387,2730.3,2729.4,3.7900005]
[1645319048166,2.4387,2730.3,2729.6,1.15078943]
[1645319048364,2.4387,2730.3,2729.7,1.55619453]
[1645319049666,1.4387,2730.3,2729.7,1.55619453]
[1645319049867,1.4387,2730.3,2729.7,1.45619453]
[1645319050069,1.4387,2730.3,2729.7,3.5]
[1645319050420,1.83339,2730.4,2730.3,0.22113488]
[1645319050616,2.35539,2730.4,2730.3,0.22113488]
[1645319050821,0.1824,2730.8,2730.3,0.22113488]
[1645319051016,0.32059997,2731.0,2730.3,0.22113488]
[1645319051220,0.13819997,2731.0,2730.3,0.22113488]
[1645319051421,0.522,2731.2,2730.9,1.08920109]
[1645319052620,0.53959679,2731.3,2730.9,0.08920109]
[1645319054025,0.51859679,2731.3,2730.9,0.08920109]
[1645319054870,1.8326,2731.2,2730.9,0.08920109]
[1645319055268,1.7826,2731.2,2730.9,0.08920109]
[1645319055668,1.7826,2731.2,2730.6,0.01662351]
[1645319056067,1.7826,2731.2,2730.3,11.37113488]
[1645319056268,1.7826,2731.2,2730.6,0.00332454]
[1645319056470,1.7414,2731.2,2730.6,0.00332454]
[1645319056775,1.7414,2731.2,2730.7,0.89681088]
[1645319057771,0.91628,2731.2,2730.7,0.89681088]
[1645319058624,0.51859679,2731.3,2730.7,0.89681088]
[1645319058824,0.18572322,2731.7,2730.7,0.89681088]
[1645319058825,0.91611,2731.5,2730.7,0.89681088]
[1645319059227,0.00332322,2731.7,2730.7,12.56284088]
[1645319059431,0.00332322,2731.7,2731.0,11.04681088]
[1645319059627,0.55325145,2732.1,2731.0,11.56881088]
[1645319059828,0.55325145,2732.1,2731.1,11.22971088]
[1645319059829,2.342e-05,2731.7,2731.1,11.22971088]
[1645319060127,2.342e-05,2731.7,2731.1,0.1829]
[1645319060527,2.342e-05,2731.7,2731.1,4.0651]
[1645319060726,0.522,2732.5,2731.1,4.0651]
[1645319061325,0.91592,2732.1,2731.1,15.2151]
[1645319061767,0.91592,2732.1,2731.9,1.0802678]
[1645319061976,1.07125323,2732.5,2731.9,1.0802678]
[1645319061977,0.54925323,2732.5,2731.9,1.0802678]
[1645319062872,1.46508323,2732.5,2731.9,1.0802678]
[1645319063368,2.46508323,2732.5,2731.9,1.0802678]
[1645319063770,2.46508323,2732.5,2731.4,0.00332456]
[1645319063771,0.0033234,2732.3,2731.4,0.00332456]
[1645319064371,4.022,2732.4,2731.1,4.6651]
[1645319064575,0.00332355,2732.0,2731.4,0.00332429]
[1645319064971,0.91604,2731.9,2731.6,1.16810914]
[1645319065170,0.91604,2731.9,2731.4,0.00332429]
[1645319065613,0.91604,2731.9,2731.1,1.1285]
[1645319065813,0.00332358,2731.8,2731.4,0.00332413]
[1645319066212,0.00332358,2731.8,2731.6,1.05497717]
[1645319066915,0.91604,2731.9,2731.1,1.1285]
[1645319067118,0.91604,2731.9,2731.4,0.00332417]
[1645319067119,0.00332362,2731.8,2731.4,0.00332417]
[1645319068115,0.91604,2731.9,2731.1,1.1285]
[1645319068315,0.00308068,2731.8,2731.4,0.00308119]
[1645319068516,0.00308068,2731.8,2731.4,1.07293725]
[1645319069163,0.91604,2731.9,2731.4,1.06985606]
[1645319069565,0.00308068,2731.8,2731.4,1.07293725]
[1645319070366,0.91604,2731.9,2731.4,1.06985606]
[1645319070768,0.00308068,2731.8,2731.4,1.07293725]
[1645319071067,0.00308068,2731.8,2731.4,0.07293725]
[1645319071268,0.00308068,2731.8,2731.4,0.02293725]
[1645319071668,0.91604,2731.9,2731.1,1.1285]
[1645319071868,0.52508068,2731.8,2731.4,0.00308119]
[1645319072912,0.9161,2731.6,2731.4,1.16343266]
[1645319074216,0.8661,2731.6,2731.4,1.16652798]
[1645319074622,0.8661,2731.6,2731.4,1.04652798]
[1645319074922,0.8661,2731.6,2731.4,0.00309532]
[1645319075320,0.8661,2731.6,2730.7,3.284]
[1645319075620,0.8661,2731.6,2731.4,0.00309532]
[1645319076421,0.8661,2731.6,2731.0,0.02997684]
[1645319076668,0.8661,2731.6,2731.4,0.00309425]
[1645319077669,0.8661,2731.6,2731.0,0.02997684]
[1645319077871,0.8661,2731.6,2731.4,0.00309425]
[1645319078870,0.8661,2731.6,2731.0,0.02997684]
[1645319079071,0.8661,2731.6,2731.4,0.00309425]
[1645319079272,0.8661,2731.6,2731.5,0.90220985]
[1645319079471,0.8661,2731.6,2731.4,0.00309425]
[1645319079472,0.52509371,2731.8,2731.4,0.00309425]